Workbook

Sheet 12.10.21
A1: Школа | B1: МБОУ СОШ с. Кузяново | E1: Отд./корп | I1: День | J1: 2021-10-12
A3: Прием пищи | B3: Раздел | C3: № рец. | D3: Блюдо | E3: Выход, г | F3: Цена | G3: Калорийность | H3: Белки | I3: Жиры | J3: Углеводы
A4: Завтрак | B4: гор.блюдо | C4: МО7КБКК | D4: Котлеты куриные, соус | E4: 60/25 | F4: 33 | G4: 145 | H4: 12.08 | I4: 6.18 | J4: 10.15
B5: гарнир | C5: ДО7ЕЯ19 | D5: Макаронные изделия отварные | E5: 150 | F5: 13 | G5: 196 | H5: 5.37 | I5: 4.25 | J5: 33.38
B6: гор.напиток | C6: ШО7ТЭШК | D6: Чай с молоком и сахаром | E6: 200 | F6: 8.00 | G6: 75 | H6: 2 | I6: 5 | J6: 18
B7: хлеб | C7: СПРЕБРЖ | D7: Хлеб пшенично -ржаной | E7: 30 | F7: 3.43 | G7: 69 | H7: 3.28 | I7: 0.9 | J7: 12.48
D9: Итого завтрак: | F9: =SUM(F4:F8) -> 57.43
A10: Завтрак 2 | B10: фрукты
A13: Обед | B13: закуска | C13: ТТК | D13: Огурец маринованный | E13: 40 | F13: 7.00 | G13: 7 | H13: 0.32 | I13: 0.04 | J13: 0.76
B14: 1 блюдо | C14: ДО7ДМ19 | D14: Суп картофельный с лапшей домашней | E14: 200 | F14: 20.00 | G14: 244 | H14: 27 | I14: 9.33 | J14: 38.67
B15: 2 блюдо | C15: ДО7КЛ19 | D15: Плов из птицы | E15: 150 | F15: 26.00 | G15: 320 | H15: 14.2 | I15: 18.4 | J15: 23.7
B16: сладкое | C16: ТК№77 | D16: Кисель витаминизированный | E16: 200 | F16: 6.00 | G16: 80 | H16: 4 | I16: 0 | J16: 25
B17: хлеб | C17: СПРЕБРЖ | D17: Хлеб пшенично -ржаной | E17: 50 | F17: 5.23 | G17: 121 | H17: 5.7 | I17: 1.55 | J17: 21.57
D21: Итого обед: | F21: =SUM(F13:F20) -> 64.23 | G21: =G4+G5+G6+G7+G9+G10+G13+G14+G15+G16+G17+G18 -> 1257 | H21: =H4+H5+H6+H7+H9+H10+H13+H14+H15+H16+H17+H18 -> 74 | I21: 46 | J21: =J4+J5+J6+J7+J9+J10+J13+J14+J15+J16+J17+J18 -> 184

Sheet 13.10.21
A1: Школа | B1: МБОУ СОШ с. Кузяново | E1: Отд./корп | I1: День | J1: 2021-10-13
A3: Прием пищи | B3: Раздел | C3: № рец. | D3: Блюдо | E3: Выход, г | F3: Цена | G3: Калорийность | H3: Белки | I3: Жиры | J3: Углеводы
A4: Завтрак | B4: гор.блюдо | C4: ДО7ИС20 | D4: Каша гречневая с мясом птицы | E4: 150 | F4: 36.00 | G4: 295 | H4: 18.25 | I4: 5 | J4: 23
B5: гор.напиток | C5: ШО7ИЯ19 | D5: Чай с сахаром | E5: 200 | F5: 6.00 | G5: 35 | H5: 0.1 | I5: 0.02 | J5: 9.9
B6: хлеб | C6: СПРЕБРЖ | D6: Хлеб пшенично -ржаной | E6: 30 | F6: 3.43 | G6: 69 | H6: 3.28 | I6: 0.9 | J6: 12.48
B7: фрукты | C7: ДО7ФРУКТ | D7: Фрукт (яблоко) | E7: 75 | F7: 12.00 | G7: 35 | H7: 0.3 | I7: 0.3 | J7: 7.35
D9: Итого завтрак: | F9: =SUM(F4:F8) -> 57.43
A10: Завтрак 2 | B10: фрукты
A13: Обед | B13: закуска | C13: ДО7АД19 | D13: Свекла отварная | E13: 40 | F13: 5.00 | G13: 14 | H13: 0.6 | I13: 0 | J13: 2.9
B14: 1 блюдо | C14: ДО7АА19 | D14: Суп картофельный с рисовой крупой | E14: 200 | F14: 8.00 | G14: 225 | H14: 1.73 | I14: 10.67 | J14: 28
B15: 2 блюдо | C15: ДО7ТК129 | D15: Фрикадельки из птицы с соусом | E15: 60/50 | F15: 29.00 | G15: 127 | H15: 7.3 | I15: 9 | J15: 4.3
B16: гарнир | C16: ДО7ЕЯ19 | D16: Рожки отварные | E16: 150 | F16: 13.00 | G16: 196 | H16: 5.37 | I16: 4.25 | J16: 33.38
B17: сладкое | C17: ШО7ИЯ19 | D17: Напиток из плодов | E17: 200 | F17: 4.00 | G17: 89 | H17: 0.2 | I17: 0.1 | J17: 23.5
B18: хлеб | C18: СПРЕБРЖ | D18: Хлеб ржано - пшеничный | E18: 50 | F18: 5.23 | G18: 121 | H18: 5.7 | I18: 1.55 | J18: 21.57
D21: Итого обед: | F21: =SUM(F13:F20) -> 64.23 | G21: =G4+G5+G6+G7+G9+G10+G13+G14+G15+G16+G17+G18 -> 1206 | H21: =H4+H5+H6+H7+H9+H10+H13+H14+H15+H16+H17+H18 -> 43 | I21: 32 | J21: =J4+J5+J6+J7+J9+J10+J13+J14+J15+J16+J17+J18 -> 166

Sheet 14.10.21
A1: Школа | B1: МБОУ СОШ с. Кузяново | E1: Отд./корп | I1: День | J1: 2021-10-14
A3: Прием пищи | B3: Раздел | C3: № рец. | D3: Блюдо | E3: Выход, г | F3: Цена | G3: Калорийность | H3: Белки | I3: Жиры | J3: Углеводы
A4: Завтрак | B4: гор.блюдо | C4: ДО7КЛ19 | D4: Плов из птицы | E4: 25/125 | F4: 26.00 | G4: 384 | H4: 17.04 | I4: 22.08 | J4: 28.44
B5: гор.напиток | C5: ШО7ТЭШК | D5: Какао с молоком | E5: 200 | F5: 8.00 | G5: 69 | H5: 2.4 | I5: 2.3 | J5: 10.2
B6: хлеб | C6: СПРЕБРЖ | D6: Хлеб пшенично -ржаной | E6: 30 | F6: 3.43 | G6: 69 | H6: 3.28 | I6: 0.9 | J6: 12.48
B7: сладкое | D7: Йогурт | E7: 100 | F7: 20.00 | G7: 120 | H7: 3 | I7: 3 | J7: 5
D9: Итого завтрак: | F9: =SUM(F4:F8) -> 57.43
A10: Завтрак 2 | B10: фрукты
A13: Обед | B13: закуска | C13: ТК №19 | D13: Салат из моркови | E13: 40 | F13: 5.00 | G13: 40 | H13: 0.4 | I13: 1.8 | J13: 5.8
B14: 1 блюдо | C14: ДО7ДИ19 | D14: Борщ из св. капусты с картофелем | E14: 200 | F14: 9.00 | G14: 252 | H14: 1.33 | I14: 12 | J14: 38.53
B15: 2 блюдо | C15: ТК№97 | D15: Гуляш из говядины | E15: 25/25 | F15: 33.00 | G15: 99.5 | H15: 7.05 | I15: 7.1 | J15: 1.6
B16: гарнир | C16: ТК 176 | D16: Каша перловая рассыпчатая | E16: 150 | F16: 6.00 | G16: 180 | H16: 4.6 | I16: 3.6 | J16: 31.7
B17: гор.напиток | C17: ШО7ИЯ19 | D17: Чай с сахаром | E17: 200 | F17: 6.00 | G17: 35 | H17: 0.1 | I17: 0.02 | J17: 9.9
B18: хлеб | C18: СПРЕБРЖ | D18: Хлеб ржано - пшеничный | E18: 50 | F18: 5.23 | G18: 121 | H18: 5.7 | I18: 1.55 | J18: 21.57
D21: Итого обед: | F21: =SUM(F13:F20) -> 64.23 | G21: =G4+G5+G6+G7+G9+G10+G13+G14+G15+G16+G17+G18 -> 1370 | H21: =H4+H5+H6+H7+H9+H10+H13+H14+H15+H16+H17+H18 -> 45 | I21: 54 | J21: =J4+J5+J6+J7+J9+J10+J13+J14+J15+J16+J17+J18 -> 165

Sheet 15.10.12
A1: Школа | B1: МБОУ СОШ с. Кузяново | E1: Отд./корп | I1: День | J1: 2021-10-15
A3: Прием пищи | B3: Раздел | C3: № рец. | D3: Блюдо | E3: Выход, г | F3: Цена | G3: Калорийность | H3: Белки | I3: Жиры | J3: Углеводы
A4: Завтрак | B4: гор.блюдо | C4: ТК № 11 | D4: Тефтели из говядины | E4: 60/20 | F4: 13.00 | G4: 196 | H4: 9.36 | I4: 12.96 | J4: 9.96
B5: гарнир | C5: ДО7ЕЯ19 | D5: Макаронные изделия отварные | E5: 150 | F5: 35.00 | G5: 196 | H5: 5.37 | I5: 4.25 | J5: 33.38
B6: гор.напиток | C6: ШО7ИЯ19 | D6: Чай с сахаром | E6: 200 | F6: 6.00 | G6: 35 | H6: 0.1 | I6: 0.02 | J6: 9.9
B7: хлеб | C7: СПРЕБРЖ | D7: Хлеб пшенично -ржаной | E7: 30 | F7: 3.43 | G7: 69 | H7: 3.28 | I7: 0.9 | J7: 12.48
D9: Итого завтрак: | F9: =SUM(F4:F8) -> 57.43
A10: Завтрак 2 | B10: фрукты
A13: Обед | B13: закуска | C13: ТК№45 | D13: Огурец маринованный | E13: 40 | F13: 7.00 | G13: 46 | H13: 0.6 | I13: 3.6 | J13: 2.8
B14: 1 блюдо | C14: ДО7ДН19 | D14: Суп картофельный с клецками | E14: 200 | F14: 9.00 | G14: 265 | H14: 1.33 | I14: 33.33 | J14: 37.33
B15: 2 блюдо | C15: ДО7БИ19 | D15: Биточки рыбные | E15: 60/25 | F15: 25.00 | G15: 134 | H15: 9.72 | I15: 6.84 | J15: 8.28
B16: гарнир | C16: ДО7ЕВ19 | D16: Картофельное пюре | E16: 150 | F16: 14.00 | G16: 136 | H16: 3 | I16: 4.63 | J16: 20.13
B17: сладеон | C17: ШО7ИЯ19 | D17: Напиток из плодов | E17: 200 | F17: 4.00 | G17: 89 | H17: 0.2 | I17: 0.1 | J17: 23.5
B18: хлеб | C18: СПРЕБРЖ | D18: Хлеб ржано - пшеничный | E18: 50 | F18: 5.23 | G18: 121 | H18: 5.7 | I18: 1.55 | J18: 21.57
D21: Итого обед: | F21: =SUM(F13:F20) -> 64.23 | G21: =G4+G5+G6+G7+G9+G10+G13+G14+G15+G16+G17+G18 -> 1287 | H21: =H4+H5+H6+H7+H9+H10+H13+H14+H15+H16+H17+H18 -> 39 | I21: 68 | J21: =J4+J5+J6+J7+J9+J10+J13+J14+J15+J16+J17+J18 -> 179
